Cogmind - Beta 10.2 @@@ ROGUE MODE // 2022.02.18 @ 23:01:07 Player: russur Result: Self-destructed Performance ------------- Evolutions (1) 500 Regions Visited (2) 400 Robots Destroyed (17) 85 Value Destroyed (357) 357 Prototype IDs (0) 0 Alien Tech Used (0) 0 Bonus (0) 0 TOTAL SCORE: 1342 Bonus ------- None Cogmind --------- Core Integrity 198/400 Matter 274/300 Energy 250/250 System Corruption 0% Temperature Cool (0) Movement Treading (170) Location -9/Materials Parts ------- > --- POWER (1) -------- Ion Engine > --- PROPULSION (2) --- Armored Treads Armored Treads > --- UTILITY (4) ------ Heat Sink Large Storage Unit Advanced Sensor Array Improved Signal Interpreter > --- WEAPON (2) ------- Axe > --- INVENTORY (10) --- Ion Engine Ion Engine Armored Treads Armored Treads Compact Matter Pod (0) Advanced Sensor Array Small Laser Light Assault Rifle Light Assault Rifle Grenade Launcher Peak State ------------ > --- POWER ------------ Ion Engine > --- PROPULSION ------- Armored Treads Armored Treads > --- UTILITY ---------- Heat Sink Large Storage Unit Advanced Sensor Array Improved Signal Interpreter > --- WEAPON ----------- Heavy EM Pulse Gun Axe > --- INVENTORY -------- Ion Engine Ion Engine Armored Treads Armored Treads Compact Matter Pod Advanced Sensor Array Small Laser Light Assault Rifle Light Assault Rifle Grenade Launcher [Rating: 20] Favorites ----------- Power Ion Engine Engine Ion Engine Propulsion Aluminum Leg Treads Armored Treads Leg Aluminum Leg Utility Small Storage Unit Device Heat Sink Storage Small Storage Unit Processor Improved Signal Interpreter Weapon Light Assault Rifle Energy Gun Small Laser Ballistic Gun Light Assault Rifle Slashing Weapon Axe Build | -11 -10 -9 ------- Run | Scr Mat Mat Slots Evolved 2 | . . 2 Power . | . . . Propulsion . | . . . Utility 2 | . . 2 Weapon . | . . . Parts Attached 24 | 9 8 7 Power 2 | 1 1 . Engine 2 | 1 1 . Core . | . . . Reactor . | . . . Propulsion 6 | 2 2 2 Treads 2 | . . 2 Leg 4 | 2 2 . Wheel . | . . . Hover . | . . . Flight . | . . . Utility 9 | 3 3 3 Device 3 | 1 1 1 Storage 5 | 2 2 1 Processor 1 | . . 1 Hackware . | . . . Protection . | . . . Artifact . | . . . Weapon 7 | 3 2 2 Energy Gun 3 | 1 1 1 Energy Cannon . | . . . Ballistic Gun 3 | 2 1 . Ballistic Cannon . | . . . Launcher . | . . . Special Weapon . | . . . Impact Weapon . | . . . Slashing Weapon 1 | . . 1 Piercing Weapon . | . . . Special Melee Weapon . | . . . Unidentified Prototypes . | . . . Parts Lost 1 | . . 1 Power . | . . . Propulsion . | . . . Utility . | . . . Weapon 1 | . . 1 Highest Loss Streak 1 | . . 1 Average Slot Usage (%) 97 | . 99 94 Engine 12 | . 14 11 Treads 3 | . . 7 Leg 21 | . 28 14 Device 9 | . . 18 Storage 20 | . 27 12 Processor 4 | . . 9 Energy Gun 8 | . 6 9 Ballistic Gun 15 | . 21 9 Naked Turns . | . . . Heaviest Build 40 | 13 24 40 Greatest Support 40 | 20 20 40 Greatest Overweight (x) 1 | . 1 1 Average Overweight (x) . | . . . Largest Inventory Capacity 16 | 8 14 16 Average Capacity 9 | 6 8 11 Most Carried 10 | 4 8 10 Average Carried 6 | 1 4 9 Final Capacity 10 | 8 10 10 Final Carried 10 | 3 8 10 Class Distribution -------------------- 100% | Mutant Dominant Class ---------------- Mutant | -10/Materials Mutant | -9/Materials Resources | -11 -10 -9 ----------- Run | Scr Mat Mat Matter Collected 465 | 293 86 86 Remotely . | . . . Salvage Created 553 | 136 227 190 Parts 39 | 8 22 9 Haulers Intercepted . | . . . Recyclers Shooed 2 | 1 . 1 Parts Field Recycled . | . . . Retrieved Matter . | . . . Parts Self-Destructed . | . . . Prevented . | . . . Kills | -11 -10 -9 ------- Run | Scr Mat Mat Combat Hostiles Destroyed 11 | . 7 4 Melee 2 | . . 2 Guns 9 | . 7 2 Classes Destroyed 7 | 2 4 1 Builder 1 | . 1 . Tunneler 2 | 2 . . Recycler 1 | 1 . . Watcher 2 | . 2 . Swarmer 4 | . 4 . Grunt 5 | . 3 2 Sentry 2 | . . 2 Best Kill Streak 4 | 3 4 2 Combat Bots Only 3 | . 3 2 Max Kills in Single Turn 1 | 1 1 1 Gunslinging . | . . . Exploded . | . . . Melee 1 | . . 1 Uniques/NPCs Destroyed . | . . . Combat | -11 -10 -9 -------- Run | Scr Mat Mat Damage Taken 1118 | . 303 815 Core 258 | . 56 202 Absorbed by Shields . | . . . Core Remaining (%) 88 | 100 77 . Volleys Fired 52 | 11 34 7 Largest 2 | 2 2 2 Hottest 65 | 60 60 65 Shots Fired 96 | 14 68 14 Gun 96 | 14 68 14 Cannon . | . . . Launcher . | . . . Special . | . . . Kinetic 56 | 3 46 7 Thermal 34 | 11 22 1 Explosive . | . . . Electromagnetic 6 | . . 6 Robot Hit Streak 9 | 9 9 7 Robot Miss Streak 10 | 1 10 4 Penetration Max . | . . . Secondary Targets 2 | . 1 1 Max Gunslinging Chain 1 | . 1 1 Shots Hit Robots 64 | 12 28 24 Core Hits 26 | 4 15 7 Critical Hits 1 | . . 1 Critical Kills 1 | . . 1 Critical Parts Destroyed . | . . . Melee Attacks 18 | . . 18 Impact . | . . . Slashing 18 | . . 18 Piercing . | . . . Sneak Attacks . | . . . Combat Hostiles . | . . . Follow-up Attacks . | . . . Damage Inflicted 1068 | 125 283 660 Guns 511 | 125 283 103 Cannons . | . . . Explosions 46 | . . 46 Melee 511 | . . 511 Ramming . | . . . Kinetic 237 | 17 183 37 Thermal 254 | 108 100 46 Explosive . | . . . Electromagnetic 66 | . . 66 Impact . | . . . Slashing 511 | . . 511 Piercing . | . . . Highest Corruption . | . . . Average Corruption . | . . . Corruption Purged . | . . . Overload Shots . | . . . Overflow Damage 30 | . . 30 Projectiles . | . . . Explosions . | . . . Melee 30 | . . 30 Knockbacks . | . . . Impact . | . . . Kinetic . | . . . Secondary . | . . . Self-Inflicted Damage . | . . . Shots . | . . . Rammed . | . . . Targets Rammed . | . . . Kicked . | . . . Crushed . | . . . Highest Temperature 60 | 40 60 5 Average Temperature 22 | 23 22 4 Received Heat Transfer 330 | . 78 252 Siege Activations . | . . . Robots Corrupted . | . . . Combat Hostiles . | . . . Parts Fried . | . . . Impact Corruptions . | . . . Robots Melted . | . . . Combat Hostiles . | . . . Parts Melted . | . . . Heat Transferred 575 | 250 225 100 Parts Sabotaged . | . . . Parts Stolen . | . . . Parts Stripped . | . . . Power Chain Reactions 1 | . . 1 Missiles Intercepted . | . . . Alert | -11 -10 -9 ------- Run | Scr Mat Mat Peak Influence 196 | 15 196 75 Initial 9 | . 9 . Average 53 | 6 102 19 Maximum Alert Level . | . . . Low Security (%) 100 | 100 100 100 Level 1 . | . . . Level 2 . | . . . Level 3 . | . . . Level 4 . | . . . Level 5 . | . . . High Security . | . . . Max Security . | . . . Squads Dispatched 1 | . 1 . Investigation . | . . . Extermination . | . . . Reinforcement 1 | . 1 . Assault . | . . . Garrison . | . . . Intercept . | . . . Construction Impeded . | . . . Haulers Reinforced . | . . . Stealth | -11 -10 -9 --------- Run | Scr Mat Mat Distress Signals 5 | . 4 1 Communications Jammed . | . . . Distress Signals . | . . . Times Spotted 17 | . 11 6 Peak Tracking Total 3 | . 3 3 Tactical Retreats . | . . . Traps | -11 -10 -9 ------- Run | Scr Mat Mat Traps Triggered . | . . . Indirectly . | . . . Trap Hack Attempts . | . . . Triggered . | . . . Disarmed 4 | . . 4 Reprogrammed . | . . . Reused . | . . . Traps Extracted . | . . . Installed . | . . . Triggered . | . . . Machines | -11 -10 -9 ---------- Run | Scr Mat Mat Machines Disabled . | . . . Max in Single Turn . | . . . Machines Sabotaged . | . . . Garrisons Compromised . | . . . Overloaded Fab Kills . | . . . Fab Network Shutdowns . | . . . Hacking | -11 -10 -9 --------- Run | Scr Mat Mat Machines Accessed 4 | . 2 2 Terminals 4 | . 2 2 Fabricators . | . . . Repair Stations . | . . . Recycling Units . | . . . Scanalyzers . | . . . Garrison Access . | . . . Total Hacks 11 | . 5 6 Successful 6 | . 4 2 Failed 5 | . 1 4 Catastrophic . | . . . Database Lockouts . | . . . Manual 8 | . 2 6 Terminals 11 | . 5 6 Fabricators . | . . . Repair Stations . | . . . Recycling Units . | . . . Scanalyzers . | . . . Garrison Access . | . . . Terminal Hacks 3 | . 2 1 Locate Traps 1 | . 1 . Disarm Traps 1 | . . 1 Zone Layout 1 | . 1 . Fabricator Hacks . | . . . Repair Station Hacks . | . . . Recycling Unit Hacks . | . . . Scanalyzer . | . . . Garrison Access Hacks . | . . . Unauthorized Hacks 3 | . 2 1 Terminals 3 | . 2 1 Botnet 3 | . 2 1 Fabricators . | . . . Repair Stations . | . . . Recycling Units . | . . . Scanalyzers . | . . . Garrison Access . | . . . Data Cores Recovered . | . . . Used . | . . . Hacking Detections 2 | . . 2 Full Trace Events 1 | . . 1 Feedback Events . | . . . Feedback Blocked . | . . . Robot Schematics Acquired . | . . . Robots Built . | . . . Matter . | . . . Time . | . . . Total Robot Build Rating . | . . . Part Schematics Acquired . | . . . Parts Built . | . . . Matter . | . . . Time . | . . . Total Part Build Rating . | . . . Parts Repaired . | . . . Time . | . . . Parts Recycled . | . . . Recycled Matter . | . . . Retrieved Matter . | . . . Retrieved Components . | . . . Parts Scanalyzed . | . . . Part Schematics Acquired . | . . . Parts Damaged . | . . . Bothacking | -11 -10 -9 ------------ Run | Scr Mat Mat Used RIF Installer . | . . . Robots Hacked . | . . . Non-combat . | . . . Combat . | . . . Robot Hacks Applied . | . . . Relay Couplers Released . | . . . Robots Rewired . | . . . Allies Hacked . | . . . Hacks Repelled . | . . . Allies | -11 -10 -9 -------- Run | Scr Mat Mat Total Allies . | . . . Largest Group . | . . . Highest-Rated Group . | . . . Highest-Rated Ally . | . . . Total Orders . | . . . Ally Attacks . | . . . Total Damage . | . . . Kills . | . . . Allies Corrupted . | . . . Allies Melted . | . . . Intel | -11 -10 -9 ------- Run | Scr Mat Mat Robot Analysis Total . | . . . Derelict Logs Recovered . | . . . Drone Launches . | . . . Drone Recoveries . | . . . Exploration | -11 -10 -9 ------------- Run | Scr Mat Mat Turns Passed 995 | 153 431 411 Spaces Moved 541 | 92 245 204 Core 3 | 3 . . Treads 48 | . . 48 Legs 490 | 89 245 156 Wheels . | . . . Hover . | . . . Flight . | . . . Fastest Speed 50 | 50 120 150 Average Speed 133 | 117 122 154 Slowest Speed 190 | 120 150 190 Overloaded Moves . | . . . Propulsion Burnouts . | . . . Robots Hopped . | . . . Cave-ins Triggered . | . . . Exploration Rate (%) 27 | 4 52 25 Regions Visited 2 Branch Regions . Pre-discovered Areas . | . . . Known Exits Taken . | . . . Unknown Exits Taken 2 | 1 1 . Scrap Searched . | . . . Spaces Dug . | . . . Terrain Destroyed 3 | . . 3 Melee . | . . . Projectile . | . . . AOE 3 | . . 3 Terrain Rammed . | . . . Walls Destroyed . | . . . Machines Disabled . | . . . Actions | -11 -10 -9 --------- Run | Scr Mat Mat Total 692 | 119 317 256 Wait 30 | 3 20 7 Move 539 | 91 244 204 Hop . | . . . Pick Up 15 | 4 5 6 Fast Attach 12 | 7 1 4 Attach 1 | . . 1 Detach . | . . . Swap 11 | 2 7 2 Drop 14 | 1 6 7 Fire 52 | 11 34 7 Melee 18 | . . 18 Ram . | . . . Kick . | . . . Crush . | . . . Escape Stasis . | . . . Rewire . | . . . Trap . | . . . Miscellaneous . | . . . Route ------- -11/Scrapyard -10/Materials (discovered 2 exits: *Mat / [*Min]) -9/Materials History --------- Turn | Location | Event 19 | -11/Scrapyard | Discovered new exit (range 15) 154 | -11/Scrapyard | Entered Materials 318 | -10/Materials | Build established: Mutant 405 | -10/Materials | Discovered new exit (range 7) 544 | -10/Materials | Discovered new exit (range 4) 585 | -10/Materials | Entered another Materials area 585 | -9/Materials | Evolved 2 slots: Utility x2 978 | -9/Materials | Core integrity fell below 50% 996 | -9/Materials | Self-destructed Last Messages --------------- 00852_ Dropped Aluminum Leg. 00853_ Acquired Arm. Treads. 00856_ R-06 Scavenger collects Aluminum Leg. 00857_ Dropped Sml. Storage Unit. 00857_ R-06 Scavenger collects Aluminum Leg. 00858_ Dropped Sml. Storage Unit. 00859_ R-06 Scavenger collects Sml. Storage Unit. 00860_ Acquired Arm. Treads. 00861_ R-06 Scavenger collects Sml. Storage Unit. 00863_ R-06 Scavenger collects Aluminum Leg. 00864_ Acquired Axe. 00944_ Destroyed Lgt. Armor Plating. 00948_ Hvy. EM Pulse Gun destroyed. 00976_ Destroyed Beam Rifle. 00979_ Y-45 Defender suffers critical hit. 00979_ Y-45 Defender destroyed. 00987_ Y-45 Defender Lgt. Armor Plating severed. 00991_ W-16 Scout sends out distress signal. 00992_ Y-45 Defender destroyed. 00995_ Acquired 51 matter. Map ----- +----------------------------------------------------+ | ?????????????????????????????????????????????? | | ?????????????????????????????????????????????? | | ?????????????????????????????????????????????? | | ?????????????????????????????????????????????? | | ?????????????????????????????????????????????? | | ?????????????????????????????????????????????? | | ?????????????????????????????????????????????? | | ?????????????????????????????????????????????? | | ?????????????????????????????????????????????? | | ?????????????????????????????????????????????? | | ?????????????????????????????????????????????? | | ?????????????????????????????????????????????? | | ?????????????????????????????????????????????? | | ??????????????????###????????????????????????? | | ?????????????????? w???????????????????????? | | ?????????????????? ????????????????????????? | | ???????????????####;#####????????????????????? | | ???????????????# #????????????????????? | | ??????????????## #????????????????????? | | ??????????????# ![[ #????????????????????? | | ???????????????# =![[ #????????????????????? | | ???????????????# [[% #????????????????????? | | ???????????????# ! #????????????????????? | | ???????????????# #????????????????????? | | ???????????????# !! #????????????????????? | | ???????????????# *@! #????????????????????? | | ???????????????####+#####????????????????????? | | ??????????????????# #????????????????????????? | | ??????????????????# #????????????????????????? | | ??????????????????# #?##########?????????????? | | ??????????????????# #?# #?????????????? | | ??????????????????# #?# #?????????????? | | ??????????????????# #?# #?????????????? | | ??????????????????# #?# #?????????????? | | ??????????????????# #?# g #?????????????? | | ??????????????????# #?# g #?????????????? | | ??????????????????# ### g #?????????????? | | ????????#########?# + #?????????????? | | ????????# ?# # #?????????????? | | ????????? # #####+#######??????????? | | ?????????? """ # ??????????? | | ???????????""""" + ??????????? | | ???????????""""" # """ ??????????? | | ???????????""""" ### """ ####??????????? | | ????????????""" ???# """ #?????????????? | | ???????????? ???# #?????????????? | | ????################# ###???????????? | | ????# "T" ## !#?????? | | ????# + #?????? | | ????# ##??????????? | +----------------------------------------------------+ Best States ------------- Heat Dissipation 38 Energy Generation 10 Energy Capacity 250 Matter Stores 300 Matter Capacity 300 Sight Range 16 Robot Scan Range 16 Terrain Scan Range 16 Terrain Scan Density 10 Evasion (%) 40 Recoil Reduction 2 Item Schematics ----------------- None Robot Schematics ------------------ None Fabricated ------------ Nothing Alien Tech Used ----------------- None Achievements -------------- None Challenges ------------ None Game ------ Seed GuidedSurgeWeb Manual? 0 Play Time 00:12:20 Cumulative 12.8 hours Start 2022.02.18 @ 22:49:30 End 2022.02.18 @ 23:01:07 Sessions 1 Manual Loads 0 Difficulty Rogue Special Mode None Game No. 37 Rogue 37 Adventurer 0 Explorer 0 Win Type - Total 0 Types 0/0/0/0/0/0/0/0/0 Lore% 15 Gallery% 22 Achievement% 18 Wizard Run 0 Options --------- ASCII 0 Keyboard 0 Movement Mouse Keybinds 0 Fullscreen 1 Font 18/SmallcapsGlow Map View 76x50 Tactical HUD 1 Map Filters NONE Filters NONE Steam 1 RUN: a87f5981-59ed-4ce2-833c-d23a0ee2cfa1